bitfinex/quotes_ETHUSD_20260313
["timestamp","ask_amount","ask_price","bid_price","bid_amount"]
[1773412425291,0.05683109,2199.5,2198.6,5.65576665]
[1773412426006,0.05683109,2199.5,2198.6,0.001]
[1773412426007,5.84057131,2199.5,2198.6,0.001]
[1773412426911,5.78374022,2199.3,2198.6,0.001]
[1773412427204,5.82931179,2199.3,2198.4,0.001]
[1773412427711,5.78374022,2199.1,2198.4,0.001]
[1773412428008,5.78374022,2198.9,2198.4,0.001]
[1773412428705,5.78374022,2198.9,2198.1,0.001]
[1773412428875,5.78374022,2198.7,2198.1,0.001]
[1773412429079,5.78374022,2198.7,2197.8,0.001]
[1773412430229,5.78374022,2198.4,2197.6,0.001]
[1773412430522,5.78374022,2198.4,2198.3,0.001]
[1773412430705,5.78374022,2198.4,2197.6,0.001]
[1773412430900,5.6709183,2198.2,2198.0,0.001]
[1773412431221,5.6709183,2198.2,2197.6,0.001]
[1773412432806,1.13734588,2198.1,2197.6,0.001]
[1773412433119,5.6709183,2198.0,2197.4,0.001]
[1773412433294,5.6709183,2197.9,2197.4,0.001]
[1773412433850,5.6709183,2197.9,2197.3,0.001]
[1773412433851,5.6709183,2197.8,2197.3,0.001]
[1773412434023,1.67134244,2197.5,2197.0,0.001]
[1773412434198,5.6709183,2197.4,2196.8,0.00347359]
[1773412434544,5.6709183,2197.3,2196.1,1.13834169]
[1773412434824,5.6709183,2197.7,2196.2,5.89000366]
[1773412435020,1.13760465,2197.6,2196.4,5.87859666]
[1773412435193,1.13760465,2197.6,2196.5,0.01139146]
[1773412435842,6.80830369,2198.1,2196.5,5.87859666]
[1773412435993,1.19425268,2198.1,2196.7,5.87859666]
[1773412436193,1.19425268,2198.1,2196.4,1.356]
[1773412436194,0.05686729,2198.1,2196.9,5.87859666]
[1773412436389,1.19421672,2198.1,2197.1,5.87859666]
[1773412436627,0.05686729,2198.1,2197.3,5.87859666]
[1773412436794,0.05686212,2198.3,2197.4,5.87859666]
[1773412436993,4.54826062,2198.7,2197.5,7.02759974]
[1773412436994,1.18264877,2198.6,2197.5,7.02759974]
[1773412437408,6.85356707,2198.6,2197.5,7.01625308]
[1773412437632,6.85356707,2198.6,2197.6,0.01133683]
[1773412438307,6.85356707,2198.6,2197.1,1.13785355]
[1773412438504,5.6709183,2198.4,2197.1,1.13785355]
[1773412438841,5.72778042,2198.3,2197.2,0.01135287]
[1773412439311,1.13729414,2198.2,2197.3,1.13775997]
[1773412439514,0.04554054,2198.1,2197.4,0.01135184]
[1773412439710,0.04554054,2198.1,2197.3,1.13775997]
[1773412439711,5.71645884,2198.1,2197.3,1.13775997]
[1773412440235,5.71645884,2198.1,2197.0,1.369904]
[1773412440530,5.71645884,2198.1,2197.1,4.55141692]
[1773412440747,5.71645884,2198.1,2196.7,7.01661559]
[1773412441035,5.71645884,2198.1,2196.8,2.49601893]
[1773412441365,5.71645884,2198.1,2196.4,4.5527668]
[1773412441366,5.6709183,2197.9,2196.4,4.5527668]
[1773412441639,5.6709183,2197.7,2196.4,4.77977247]
[1773412441826,0.04554054,2197.6,2196.5,5.88998579]
[1773412442006,0.05687246,2197.9,2196.5,5.88998579]
[1773412442927,4.6059613,2198.3,2196.7,5.87859666]
[1773412443538,4.6059613,2198.3,2196.9,5.87859666]
[1773412443539,1.19411776,2198.3,2196.9,5.87859666]
[1773412443727,1.19411776,2198.3,2197.1,5.87859666]
[1773412443926,1.19411776,2198.3,2197.3,5.87859666]
[1773412444239,1.19411776,2198.3,2196.9,5.87859666]
[1773412444240,6.86503606,2198.3,2196.9,5.87859666]
[1773412444440,5.6709183,2198.2,2196.7,1.13802969]
[1773412444620,5.6709183,2197.8,2196.6,1.13910935]
[1773412444819,5.6709183,2197.6,2196.6,1.13910935]
[1773412445152,5.6709183,2197.5,2196.6,0.001]
[1773412445315,5.6709183,2197.5,2196.4,0.001]
[1773412445316,5.71645884,2197.5,2196.4,0.001]
[1773412445516,5.6709183,2197.3,2196.4,0.001]
[1773412446248,4.55055805,2197.6,2196.4,5.87959666]
[1773412446425,0.05688282,2197.5,2196.5,5.88998812]
[1773412446827,0.05688282,2197.5,2196.5,5.87859666]
[1773412447224,5.72780112,2197.5,2196.4,0.001]
[1773412448730,1.1377082,2197.4,2196.4,1.15062049]
[1773412449130,1.19459361,2197.4,2196.4,1.15062049]
[1773412449749,6.86551191,2197.4,2196.4,0.001]
[1773412451741,5.6709183,2197.2,2196.4,0.001]
[1773412451928,5.6709183,2196.9,2196.1,0.001]
[1773412452130,5.6709183,2196.9,2196.1,0.01241685]
[1773412452349,5.6709183,2196.9,2196.1,0.001]
[1773412452853,1.13801893,2196.8,2196.1,0.001]
[1773412453167,1.13800482,2196.9,2196.1,0.001]
[1773412453374,6.80892312,2196.9,2196.1,0.001]
[1773412454428,5.6709183,2196.7,2195.7,0.001]
[1773412454633,1.67134244,2196.6,2195.7,0.001]
[1773412454966,5.6709183,2196.4,2195.5,0.001]
[1773412455944,1.67134244,2196.3,2195.5,0.001]
[1773412456259,5.6709183,2196.2,2195.5,0.001]
[1773412456746,5.6709183,2196.0,2195.5,0.001]
[1773412456946,5.6709183,2196.0,2195.4,0.001]
[1773412457470,7.34226074,2196.0,2194.4,7.01783639]
[1773412457672,5.6709183,2195.6,2194.4,1.13925768]
[1773412457977,5.6709183,2195.6,2194.5,5.89006383]
[1773412458627,5.6709183,2195.6,2194.4,1.13925768]
[1773412458846,5.6709183,2195.4,2194.3,4.55706024]
[1773412459160,5.6709183,2195.4,2193.9,0.64799096]
[1773412459161,5.6709183,2195.2,2193.9,1.78749847]
[1773412459341,5.6709183,2195.2,2194.0,5.89011545]
[1773412459541,5.6709183,2195.2,2194.0,5.87859666]
[1773412459743,5.6709183,2195.2,2194.1,0.01151593]
[1773412460126,5.6709183,2195.2,2194.0,5.87859666]
[1773412460331,1.13869278,2195.5,2194.2,5.87859666]
[1773412460657,6.80961108,2195.5,2194.2,5.87859666]
[1773412460842,6.80961108,2195.5,2194.3,1.13931549]
[1773412461237,6.80961108,2195.5,2194.4,0.01150036]
[1773412461238,5.85406922,2195.4,2194.4,0.01150036]
[1773412461441,5.85406922,2195.4,2194.2,1.13933273]
[1773412461652,5.85406922,2195.4,2194.1,1.13939179]
[1773412461829,5.85406922,2195.4,2194.2,0.0115084]
[1773412462031,5.85406922,2195.4,2194.0,6.82841597]
[1773412462443,5.85406922,2195.4,2194.0,1.13944411]
[1773412462735,5.85406922,2195.4,2194.0,6.82841597]
[1773412462930,1.13879651,2195.3,2194.0,6.82841597]
[1773412463135,1.19551851,2195.7,2194.2,5.68897186]
[1773412463650,5.85406922,2195.6,2194.2,5.68897186]
[1773412463850,0.05693463,2195.5,2194.2,5.68897186]
[1773412464649,0.05693463,2195.5,2194.3,1.351]
[1773412465051,1.13874464,2195.4,2194.4,1.13926358]
[1773412465247,0.05693982,2195.3,2194.4,1.13926358]
[1773412466454,0.05693982,2195.3,2194.2,5.68897186]
[1773412466455,0.05693982,2195.3,2194.2,8.18030262]
[1773412466971,1.13884839,2195.2,2194.2,6.82830262]
[1773412467271,6.99291761,2195.2,2193.9,0.64799096]
[1773412467479,4.55539358,2195.3,2193.9,0.64799096]
[1773412467480,4.55539358,2195.3,2194.0,7.04097186]
[1773412467645,1.13858906,2195.7,2194.2,5.68897186]
[1773412467973,5.85406922,2196.5,2194.6,5.68897186]
[1773412468174,5.85406922,2196.4,2194.8,5.68897186]
[1773412468469,5.85406922,2196.4,2194.9,5.73453202]
[1773412468676,5.85406922,2196.4,2195.0,7.04097186]
[1773412468880,5.85406922,2196.4,2195.1,1.352]
[1773412469041,5.85406922,2196.4,2195.2,1.13884839]
[1773412469042,1.13827801,2196.3,2195.2,1.13884839]
[1773412469245,1.13827801,2196.3,2195.2,6.82782025]
[1773412470058,6.99234723,2196.3,2194.9,1.13897911]
[1773412470257,6.99234723,2196.3,2195.1,1.352]
[1773412470443,0.002,2196.0,2195.1,7.04097186]
[1773412470648,0.002,2196.0,2194.9,1.13897911]
[1773412470859,0.002,2196.0,2195.1,1.352]
[1773412471062,0.002,2196.0,2195.2,1.352]
[1773412472368,0.002,2196.0,2195.2,1.13884472]
[1773412472563,0.002,2196.0,2195.2,2.49084472]
[1773412473049,0.002,2196.0,2195.2,8.17981658]
[1773412473247,0.002,2196.0,2195.2,2.49084472]
[1773412473561,0.002,2196.2,2195.3,5.68897186]
[1773412473766,0.002,2196.5,2195.3,5.68897186]
[1773412473982,1.14017652,2196.5,2195.3,5.68897186]
[1773412474143,1.14017652,2196.5,2195.4,1.352]
[1773412474343,6.99424574,2196.5,2195.4,7.04097186]
[1773412475287,6.99424574,2196.5,2195.5,1.13869278]
[1773412475494,6.99424574,2196.5,2195.6,1.352]
[1773412476189,1.14017652,2196.5,2195.6,1.352]
[1773412476498,0.002,2196.5,2195.6,7.04097186]
[1773412476816,1.14017612,2196.5,2195.6,7.04097186]
[1773412476961,1.14017612,2196.5,2195.7,1.352]
[1773412477164,1.14017612,2196.5,2195.3,4.55477112]
[1773412477165,6.99424534,2196.5,2195.3,1.13878231]
[1773412477504,6.99424534,2196.5,2195.5,1.13869278]
[1773412477790,6.99424534,2196.5,2195.4,1.352]
[1773412477989,6.99424534,2196.5,2195.4,2.49073395]
[1773412478362,6.99424534,2196.5,2195.3,1.18432004]
[1773412478563,6.99424534,2196.5,2195.4,1.352]
[1773412478763,6.99424534,2196.5,2195.3,1.13876818]
[1773412479100,6.99424534,2196.5,2195.4,1.39754978]
[1773412479600,6.99424534,2196.5,2195.5,1.13869278]
[1773412479774,6.99424534,2196.5,2195.4,2.53625447]
[1773412480103,6.99424534,2196.5,2195.4,2.53629154]
[1773412480394,6.99424534,2196.5,2195.4,1.352]
[1773412480603,6.99424534,2196.5,2195.3,1.13878488]
[1773412480831,6.99424534,2196.5,2195.5,1.352]
[1773412481096,6.99424534,2196.5,2195.6,0.04554563]
[1773412482093,1.14021343,2196.5,2195.6,6.87314229]
[1773412482391,1.14018265,2196.5,2195.6,6.87314229]
[1773412482590,1.04886641,2196.5,2195.6,6.87314229]
[1773412482803,10.70562466,2196.8,2195.6,6.87314229]
[1773412482804,1.13807074,2196.7,2195.6,6.87314229]
[1773412483404,0.29947905,2196.8,2195.6,6.87314229]
[1773412483575,1.43750095,2196.8,2195.6,6.87314229]
[1773412483779,1.13786354,2197.1,2195.6,6.87314229]
[1773412484381,1.13775997,2197.3,2195.8,5.68897186]
[1773412484599,1.13775997,2197.3,2196.1,5.68897186]
[1773412484902,6.99182919,2197.3,2196.2,1.352]
[1773412485077,0.002,2196.7,2196.2,7.04097186]
[1773412485673,0.002,2196.7,2196.2,1.352]
[1773412485878,0.002,2196.7,2196.2,1.13832602]
[1773412486098,0.002,2196.7,2196.3,1.352]
[1773412486506,0.002,2196.7,2196.0,1.13839786]
[1773412486706,0.002,2196.7,2196.2,1.352]
[1773412486917,0.002,2196.7,2195.6,5.70682454]
[1773412487207,0.002,2196.7,2195.7,6.8805104]
[1773412487416,0.002,2196.7,2195.7,1.39754356]
[1773412487600,0.002,2196.7,2195.8,5.48296684]
[1773412487807,0.002,2196.7,2196.0,5.48296684]
[1773412487984,0.002,2196.7,2196.1,0.04553526]
[1773412488184,0.002,2196.7,2196.1,5.5285021]
[1773412488392,0.002,2197.0,2196.2,2.46967212]
[1773412488689,0.002,2197.0,2196.3,6.83496684]
[1773412489183,6.90443677,2197.7,2196.4,1.352]
[1773412489382,6.90443677,2197.7,2196.4,6.83496684]
[1773412489612,6.90443677,2197.7,2196.4,5.48296684]
[1773412489907,6.90443677,2197.7,2196.5,2.49017436]
[1773412490296,6.90443677,2197.7,2196.5,7.9731412]
[1773412490492,6.90443677,2197.7,2196.6,1.353]
[1773412491390,6.90443677,2197.7,2196.7,1.353]
[1773412492408,6.90443677,2197.7,2196.8,1.13801893]
[1773412493211,6.90443677,2197.7,2196.9,1.353]
[1773412494287,6.90443677,2197.7,2196.9,2.49092842]
[1773412494689,6.90443677,2197.7,2197.0,1.353]
[1773412494906,6.90443677,2197.7,2197.1,1.353]
[1773412495214,1.13955502,2197.7,2197.1,1.353]
[1773412496021,0.002,2197.7,2197.1,1.353]
[1773412496185,1.13948679,2197.9,2197.1,6.66462198]
[1773412496385,0.002,2197.9,2197.2,6.44943374]
[1773412497224,0.002,2197.9,2197.3,1.353]
[1773412497389,0.002,2197.9,2197.3,6.66462198]
[1773412498087,0.002,2197.5,2197.3,6.66462198]
[1773412498303,0.002,2197.9,2197.4,1.1377082]
[1773412499118,0.002,2197.7,2197.4,1.1377082]
[1773412500412,0.002,2197.9,2197.4,1.1377082]
[1773412500915,0.002,2197.9,2197.5,1.354]
[1773412501120,5.32354019,2197.9,2197.2,1.354]
[1773412501318,5.32354019,2197.9,2196.6,5.35714688]
[1773412501523,5.32354019,2197.9,2196.7,1.354]
[1773412501524,5.32154019,2197.7,2196.7,1.354]
[1773412501715,5.32154019,2197.7,2196.8,0.04552075]
[1773412502018,5.32154019,2197.7,2196.9,1.354]
[1773412502888,6.45914484,2197.6,2196.9,1.354]
[1773412503087,1.13759083,2197.7,2197.0,0.04551661]
[1773412503892,6.45913102,2197.7,2197.0,1.40051661]
[1773412504119,6.45913102,2197.7,2196.7,1.13804157]
[1773412504322,6.45913102,2197.7,2197.0,1.355]
[1773412504501,6.45913102,2197.7,2196.9,1.355]
[1773412504702,5.32154019,2197.6,2196.2,0.001]
[1773412504899,5.32154019,2197.4,2196.2,0.001]
[1773412505116,5.32154019,2197.3,2196.2,0.001]
[1773412506197,5.32154019,2197.1,2196.0,0.001]
[1773412506715,5.32154019,2197.1,2195.7,0.001]
[1773412506915,1.13807074,2196.7,2195.7,0.001]
[1773412507099,5.32154019,2196.6,2195.7,0.001]
[1773412508510,5.32154019,2196.6,2195.7,1.356]
[1773412508707,5.32154019,2196.6,2195.8,0.04554148]
[1773412509111,6.45971455,2196.5,2195.7,0.001]
[1773412509310,6.45971455,2196.5,2195.4,0.001]
[1773412510321,5.32154019,2196.4,2195.4,0.001]
[1773412511203,5.32154019,2196.2,2195.4,0.001]
[1773412512244,5.32154019,2196.2,2195.1,0.001]
[1773412512733,1.13827801,2196.3,2194.9,0.001]
[1773412512734,7.88257944,2195.7,2195.6,0.001]
[1773412512926,7.88257944,2195.7,2194.9,0.001]
[1773412512927,5.32154019,2195.6,2194.9,0.001]
[1773412513117,6.46023297,2195.5,2194.9,0.001]
[1773412516301,6.46023297,2195.5,2194.5,0.04556846]
[1773412516732,6.46023297,2195.5,2194.4,0.001]
[1773412518334,6.50583544,2195.5,2194.4,0.001]
[1773412521754,6.46023504,2195.5,2194.4,0.001]
[1773412522060,6.50583751,2195.5,2194.4,0.001]
[1773412523140,5.34004485,2195.3,2194.4,0.001]
[1773412523326,5.34004485,2195.1,2194.4,0.001]
[1773412523525,5.34004485,2194.9,2194.4,0.001]
[1773412523721,5.34004485,2194.9,2194.1,0.001]
[1773412523978,1.13915975,2194.6,2194.1,0.001]
[1773412524524,1.13915975,2194.6,2193.9,0.64799096]
[1773412524525,5.34004485,2194.5,2193.9,0.64799096]
[1773412524842,5.34004485,2194.5,2193.9,0.63895786]
[1773412525032,5.34004485,2194.5,2193.3,0.04559339]
[1773412525229,5.34004485,2194.5,2193.2,1.13985652]
[1773412525445,5.34004485,2194.5,2194.4,0.001]
[1773412525629,5.34004485,2194.5,2193.1,1.13989377]
[1773412526150,5.34004485,2194.3,2194.1,0.001]
[1773412526352,1.13926358,2194.4,2192.5,4.56085283]
[1773412526353,5.34004485,2194.1,2192.5,4.56085283]
[1773412526517,1.67677798,2194.2,2192.5,0.04561003]
[1773412526518,5.34004485,2193.7,2192.5,0.04561003]
[1773412526715,7.01804485,2193.6,2192.5,0.04561003]
[1773412526944,5.34004485,2193.5,2192.5,0.04561003]
[1773412527442,5.34004485,2193.5,2192.4,1.14026931]
[1773412527823,5.34004485,2193.5,2192.2,1.14036774]
[1773412528017,5.34004485,2193.5,2192.1,0.04561835]
[1773412528018,5.34004485,2193.3,2192.1,0.04561835]
[1773412528213,5.34004485,2193.3,2191.8,0.0456246]
[1773412528617,1.13978298,2193.4,2191.4,1.2772367]
[1773412528618,5.34004485,2193.0,2191.4,1.2772367]
[1773412528836,5.34004485,2192.4,2191.4,0.1364487]
[1773412529037,5.34004485,2192.3,2191.4,0.1364487]
[1773412529242,1.67677798,2192.4,2190.9,0.07842506]
[1773412529243,5.34004485,2192.1,2190.9,0.03278172]
[1773412529416,5.34004485,2192.1,2188.9,0.65208639]
[1773412529417,5.34004485,2190.9,2189.0,1.36614753]
[1773412529621,5.34004485,2190.0,2188.9,0.65208639]
[1773412529844,5.34004485,2190.6,2189.0,0.04568296]
[1773412530044,5.34004485,2190.6,2189.1,6.35580751]
[1773412530345,6.48129014,2190.6,2189.2,1.318]
[1773412530547,6.48128548,2190.6,2189.2,1.36367878]
[1773412530744,6.48128685,2190.6,2189.2,1.36367878]
[1773412530948,5.34004485,2190.6,2189.2,1.318]
[1773412531146,6.4813207,2190.6,2189.3,0.0456767]
[1773412531470,6.48128864,2190.6,2189.1,1.14202183]
[1773412531647,5.34004485,2190.6,2189.1,1.14202183]
[1773412531947,5.34004485,2190.6,2189.2,5.21378568]
[1773412532126,5.34004485,2190.6,2189.3,1.1419175]
[1773412532550,6.48131121,2190.6,2189.3,1.1419175]
[1773412532856,6.48131121,2190.6,2188.9,0.65208639]
[1773412532857,5.34004485,2190.4,2188.9,1.79419751]
[1773412533063,5.34004485,2190.4,2188.9,1.83988255]
[1773412533575,5.34004485,2190.4,2188.9,1.79419751]
[1773412534162,5.34004485,2190.2,2188.9,1.79419751]
[1773412534329,5.34004485,2190.0,2188.9,0.65208639]
[1773412534737,5.34004485,2190.0,2188.3,1.14238815]
[1773412535345,5.34004485,2190.0,2188.2,1.14246982]
[1773412535718,5.34004485,2189.4,2186.4,0.91629125]
[1773412535919,5.34004485,2189.2,2187.3,5.21378568]
[1773412536128,5.34004485,2189.6,2187.7,5.21378568]
[1773412536343,1.667,2189.9,2188.1,5.21378568]
[1773412536529,1.14150697,2190.1,2188.4,5.21378568]
[1773412536733,6.48155182,2190.1,2188.4,5.21378568]
[1773412536948,5.34004485,2189.9,2188.1,2.52211953]
[1773412537141,5.34004485,2189.9,2188.2,0.04569966]
[1773412537342,5.34004485,2189.9,2188.1,7.73590521]
[1773412537649,5.34004485,2189.9,2187.6,6.58622327]
[1773412537831,5.34004485,2189.9,2187.8,5.21378568]
[1773412538030,5.34004485,2189.9,2187.9,0.04570592]
[1773412538236,5.34004485,2189.7,2188.3,0.001]
[1773412539918,5.34004485,2189.7,2188.3,0.04669757]
[1773412540124,6.4818059,2189.6,2188.3,1.14343933]
[1773412540548,6.4818059,2189.6,2188.3,1.1891369]
[1773412540855,6.4818059,2189.6,2188.3,1.14343933]
[1773412541225,6.4818059,2189.6,2188.3,0.001]
[1773412541448,1.14176105,2189.6,2188.3,0.001]
[1773412541848,1.18734809,2189.7,2188.3,5.21478568]
[1773412542153,0.04560247,2189.6,2188.5,5.21378568]
[1773412542350,4.56580668,2190.2,2188.6,5.21378568]
[1773412542351,5.38564732,2190.1,2188.6,5.21378568]
[1773412542535,5.38564732,2190.1,2188.7,0.04568922]
[1773412542738,5.38564732,2190.1,2188.6,5.25947698]
[1773412542944,1.1413675,2190.4,2188.8,5.21378568]
[1773412543134,0.04560247,2190.3,2189.0,5.21378568]
[1773412543329,0.04560247,2190.3,2189.2,5.21378568]
[1773412543841,0.04560247,2190.3,2189.1,1.329]
[1773412543842,5.38564732,2190.4,2189.1,0.04568087]
[1773412544035,6.52703695,2190.4,2188.8,5.21378568]
[1773412544229,6.52703695,2190.4,2188.8,6.35593777]
[1773412544433,5.34004485,2190.3,2188.9,0.04568504]
[1773412544730,5.34004485,2190.1,2188.6,9.78270972]
[1773412544955,2.81438963,2190.4,2188.6,4.56892404]
[1773412544956,5.38564732,2190.0,2188.6,4.56892404]
[1773412545255,5.38564732,2190.0,2188.3,4.57070164]
[1773412545256,5.38564732,2190.0,2188.4,1.14238713]
[1773412545670,5.38564732,2190.0,2188.5,0.04569339]
[1773412545960,5.38564732,2190.0,2188.4,6.35617281]
[1773412546265,5.1371587,2189.8,2188.3,1.14342818]
[1773412546486,1.14160463,2189.9,2188.3,6.42127812]
[1773412546487,5.18276117,2189.7,2188.3,6.42127812]
[1773412546773,0.04560247,2189.7,2188.4,5.27784994]
[1773412546971,0.04560247,2189.8,2188.6,5.27784994]
[1773412547372,0.04560247,2189.8,2188.7,5.32353916]
[1773412547577,0.04560247,2189.8,2188.8,0.04568713]
[1773412547752,0.04560247,2189.8,2188.3,6.42127812]
[1773412548076,5.18276117,2189.8,2188.4,1.333]
[1773412548639,1.1417089,2189.7,2188.5,1.14233493]
[1773412548991,1.1417089,2189.7,2188.4,2.47535134]
[1773412548992,5.18276117,2189.6,2188.4,2.47535134]
[1773412549483,5.18276117,2189.6,2188.5,0.04569339]
[1773412549773,0.04560247,2189.6,2188.5,0.04569339]
[1773412549936,0.04560247,2189.6,2188.4,1.14237791]
[1773412550131,5.18276117,2189.6,2188.4,1.14237714]
[1773412550344,5.18276117,2189.6,2188.3,2.47740157]
[1773412550549,5.18276117,2189.6,2188.5,0.001]
[1773412550748,1.14181319,2189.5,2188.5,0.001]
[1773412550981,0.04560247,2189.4,2188.5,0.001]
[1773412551154,0.04560247,2189.4,2188.5,0.04669339]
[1773412551685,5.11246575,2189.3,2188.3,0.001]
[1773412551857,0.05709848,2189.2,2188.3,0.001]
[1773412552047,0.05709848,2189.2,2188.3,1.17030767]
[1773412552448,0.05709848,2189.2,2188.3,1.14343196]
[1773412552654,1.14202183,2189.1,2188.3,0.001]
[1773412552848,6.25448758,2189.1,2188.3,0.001]
[1773412553051,6.25448758,2189.1,2188.0,0.001]
[1773412553248,6.31158867,2189.1,2188.0,0.001]
[1773412553603,5.11246575,2188.9,2188.0,0.001]
[1773412553886,5.11246575,2188.7,2188.0,0.001]
[1773412554094,5.11246575,2188.7,2187.3,0.02690397]
[1773412554254,5.11246575,2188.7,2187.1,1.14301389]
[1773412554460,5.11246575,2188.7,2187.2,5.0897996]
[1773412554654,1.14228273,2188.6,2187.4,1.14290939]
[1773412554881,1.142074,2189.0,2187.5,5.11671509]
[1773412555187,6.25453975,2189.0,2187.4,1.14290939]
[1773412555385,5.16957205,2188.9,2187.4,1.14290939]
[1773412555555,5.16957205,2188.9,2187.4,2.46190939]
[1773412555885,5.16957205,2188.9,2187.4,2.46290939]
[1773412556269,5.16957205,2188.9,2187.4,7.55270899]
[1773412556870,6.25464411,2188.8,2187.5,0.0269095]
[1773412557081,6.25464411,2188.8,2187.4,6.23270899]
[1773412557251,6.31175302,2188.8,2187.5,0.0269115]
[1773412557452,6.31175302,2188.8,2187.0,5.2262483]
[1773412557453,6.31175302,2188.8,2187.0,6.36931446]
[1773412557786,6.31175302,2188.8,2187.0,0.1364487]
[1773412557988,6.31175302,2188.8,2187.0,1.27955852]
[1773412558185,6.31175302,2188.8,2187.0,1.27956301]
[1773412558484,6.31175302,2188.8,2187.0,0.1364487]
[1773412558789,6.31175302,2188.8,2187.2,1.14301389]
[1773412559083,5.11246575,2188.6,2187.1,1.14303061]
[1773412559271,0.05711413,2188.6,2187.2,5.0897996]
[1773412559453,5.16957988,2188.6,2187.1,1.14303061]
[1773412559662,4.16957988,2188.6,2187.1,1.14303061]
[1773412559884,4.199816,2188.6,2187.1,1.14303061]
[1773412560068,4.199816,2188.6,2187.2,0.04572055]
[1773412560264,4.199816,2188.6,2187.2,5.13552015]
[1773412560466,0.03023612,2188.6,2187.3,24.029235]
[1773412560666,0.03023612,2188.7,2187.4,5.12813044]
[1773412560882,1.17246971,2188.7,2187.6,5.0897996]
[1773412561197,1.17246971,2188.7,2187.7,1.325]
[1773412561403,1.17246971,2188.7,2187.7,6.4605097]
[1773412561692,1.17246971,2188.7,2187.8,1.325]
[1773412561871,4.56791866,2189.2,2187.8,1.325]
[1773412561872,9.67992715,2189.5,2187.9,5.13550552]
[1773412562069,1.14186535,2189.4,2187.9,5.0897996]
[1773412562297,6.2543311,2189.4,2188.0,1.326]
[1773412562459,6.2543311,2189.4,2188.1,5.0897996]
[1773412562662,1.14186535,2189.4,2188.2,5.13549926]
[1773412562861,4.5674614,2189.5,2188.3,6.23223893]
[1773412563080,1.14166612,2189.8,2188.3,6.23223893]
[1773412563279,6.25413187,2189.8,2188.3,6.23223893]
[1773412563496,6.25413187,2189.8,2188.4,1.328]
[1773412563863,6.25413187,2189.8,2188.4,6.4177996]
[1773412564587,1.14166612,2189.8,2188.5,5.0897996]
[1773412564787,6.25413187,2189.8,2188.6,2.47228273]
[1773412565361,0.002,2189.5,2188.6,1.14228273]
[1773412565561,0.002,2189.5,2188.3,4.56971388]
[1773412565562,0.002,2189.5,2188.3,1.331]
[1773412565776,5.11446575,2189.5,2188.3,1.331]
[1773412566458,0.002,2189.5,2188.3,6.4207996]
[1773412566661,0.002,2189.5,2188.4,5.0897996]
[1773412566865,0.002,2189.5,2188.6,5.0897996]
[1773412567289,0.002,2189.5,2188.7,1.333]
[1773412567491,0.002,2189.5,2188.4,1.333]
[1773412567687,0.002,2189.5,2188.1,7.07166649]
[1773412567688,5.11446575,2189.5,2188.0,2.47559597]
[1773412568063,5.11446575,2189.5,2188.0,1.333]
[1773412568370,5.11446575,2189.5,2187.9,1.14363068]
[1773412568903,5.11246575,2189.3,2187.9,1.14363068]
[1773412569189,5.11246575,2189.3,2188.0,0.04570383]
[1773412569606,5.11246575,2189.3,2188.1,1.335]
[1773412569811,5.11246575,2189.3,2188.2,0.04569966]
[1773412569972,1.14186535,2189.4,2188.2,0.04569966]
[1773412569973,1.14186535,2189.4,2188.2,5.0897996]
[1773412570173,1.14385307,2189.5,2188.3,5.0897996]
[1773412570601,1.14385307,2189.5,2188.4,0.04569548]
[1773412570804,0.002,2189.5,2188.4,5.0897996]
[1773412570989,0.002,2189.5,2188.5,6.23213453]
[1773412571772,0.002,2189.5,2188.6,0.0456913]
[1773412571975,0.002,2189.5,2188.6,5.1354909]
[1773412572891,0.002,2189.5,2188.7,1.14223054]
[1773412573089,0.002,2189.5,2188.8,1.337]
[1773412573509,0.002,2189.7,2188.8,6.4267996]
[1773412574207,0.002,2189.7,2188.8,6.47248673]
[1773412574808,4.56572823,2190.3,2188.9,5.0897996]
[1773412575010,0.002,2190.4,2189.1,1.14202183]
[1773412575190,5.11446575,2190.4,2189.1,1.14202183]
[1773412575394,5.11446575,2190.4,2189.1,2.48102183]
[1773412576550,5.11446575,2190.4,2189.1,2.46184706]
[1773412577093,1.14139615,2190.3,2189.1,7.55164666]
[1773412577284,1.14139615,2190.3,2189.2,5.0897996]
[1773412578116,1.14139615,2190.3,2189.3,1.339]
[1773412578316,1.14139615,2190.3,2189.3,6.4744763]
[1773412578507,1.14139615,2190.3,2189.3,6.4287996]
[1773412578819,1.14139615,2190.3,2189.4,1.34]
[1773412579111,6.2538619,2190.3,2189.3,1.34]
[1773412579315,6.2538619,2190.3,2189.3,2.48191574]
[1773412579700,1.14335527,2190.4,2189.3,7.57171534]
[1773412579903,0.002,2190.2,2189.3,7.57171534]
[1773412580085,0.002,2190.2,2189.4,0.04567461]
[1773412580330,0.002,2190.2,2189.3,7.57171534]
[1773412580672,0.002,2190.2,2189.0,1.142074]
[1773412580965,5.11446575,2190.2,2189.1,1.34]
[1773412581319,1.14150038,2190.1,2189.0,1.142074]
[1773412581560,6.14711884,2190.1,2189.0,1.142074]
[1773412581753,6.14711884,2190.1,2189.1,0.04568087]
[1773412582059,6.14711884,2190.1,2189.0,1.142074]
[1773412582862,1.14348084,2190.2,2189.1,5.06790537]
[1773412583067,6.1490993,2190.2,2189.2,1.34]
[1773412583440,6.1490993,2190.2,2189.3,0.0456767]
[1773412583764,6.1490993,2190.2,2189.3,1.1875942]
[1773412584265,6.1490993,2190.2,2189.3,1.1419175]
[1773412585269,1.14348084,2190.2,2189.4,0.04567461]
[1773412585643,0.002,2190.2,2189.5,1.14181319]
[1773412585871,0.002,2190.2,2189.6,0.04567044]
[1773412586368,0.002,2190.2,2189.5,1.341]
[1773412587459,0.002,2190.2,2189.0,4.5681511]
[1773412587661,0.002,2190.2,2189.4,1.341]
[1773412587662,1.14150038,2190.1,2189.4,1.341]
[1773412587837,1.14150038,2190.1,2189.4,2.48286448]
[1773412588586,6.14711884,2190.1,2188.9,0.22990738]
[1773412588794,6.14711884,2190.1,2188.7,1.341]
[1773412589134,6.14711884,2190.1,2188.6,1.14228273]
[1773412589135,5.00561846,2190.0,2188.6,1.14228273]
[1773412589351,5.00561846,2190.0,2188.6,2.48428273]
[1773412589847,5.00561846,2189.6,2188.1,4.57004818]
[1773412590059,5.00561846,2189.6,2188.0,1.342]
[1773412590257,5.00561846,2189.6,2187.9,1.14362487]
[1773412591637,1.68332644,2189.4,2187.9,0.001]
[1773412591766,0.21502099,2189.5,2187.9,0.001]
[1773412591767,5.00561846,2188.7,2187.9,0.001]